fUST/lending_fUST_20240301
["ID","MTS","AMOUNT","RATE_DAILY","PERIOD"]
[315949088,1709299834364,-514.27509748,0.00020547,2]
[315949089,1709299834373,-500.0,0.00020547,2]
[315949090,1709299834382,-501.4456828,0.00020547,2]
[315949091,1709299834394,-500.0,0.00020547,2]
[315949092,1709299834403,-500.0,0.00020547,2]
[315949093,1709299834413,-503.49810621,0.00020547,2]
[315949094,1709299834422,-500.79775915,0.00020547,2]
[315949095,1709299834431,-500.0,0.00020547,2]
[315949096,1709299834441,-500.0,0.00020547,2]
[315949097,1709299834450,-500.0,0.00020547,2]
[315949098,1709299834459,-500.0,0.00020547,2]
[315949099,1709299834468,-500.0,0.00020547,2]
[315949100,1709299834477,-500.0,0.00020547,2]
[315949101,1709299834486,-500.0,0.00020547,2]
[315949102,1709299834495,-500.0,0.00020547,2]
[315949103,1709299834504,-500.0,0.00020547,2]
[315949104,1709299834512,-500.0,0.00020547,2]
[315949105,1709299834521,-500.81546176,0.00020547,2]
[315949106,1709299834530,-500.0,0.00020547,2]
[315949107,1709299834539,-500.0,0.00020547,2]
[315949108,1709299834549,-595.44437166,0.00020547,2]
[315949109,1709299834558,-501.57868105,0.00020547,2]
[315949110,1709299834569,-500.0,0.00020547,2]
[315949111,1709299834578,-235.26684064,0.00020547,2]
[315949112,1709299834587,-500.0,0.00020547,2]
[315949113,1709299834597,-500.77081773,0.00020547,2]
[315949114,1709299834606,-500.0,0.00020547,2]
[315949115,1709299834615,-500.0,0.00020547,2]
[315949116,1709299834624,-500.0,0.00020547,2]
[315949117,1709299834634,-500.0,0.00020547,2]
[315949118,1709299834645,-499.94674065,0.00020547,2]
[315949119,1709299834654,-274.72759022,0.00020547,2]
[315949120,1709299834663,-500.0,0.00020547,2]
[315949121,1709299834672,-340.89820811,0.00020547,2]
[315949122,1709299834681,-501.05754814,0.00020547,2]
[315949123,1709299834691,-501.41800081,0.00020547,2]
[315949124,1709299834700,-512.51708328,0.00020547,2]
[315949125,1709299834709,-500.0,0.00020547,2]
[315949126,1709299834718,-500.0,0.00020547,2]
[315949127,1709299834727,-500.0,0.00020547,2]
[315949128,1709299834736,-582.55191749,0.00020547,2]
[315949129,1709299834746,-500.0,0.00020547,2]
[315949130,1709299834755,-263.75226372,0.00020547,2]
[315949131,1709299834763,-500.0,0.00020547,2]
[315949132,1709299834772,-500.0,0.00020547,2]
[315949133,1709299834781,-500.0,0.00020547,2]
[315949134,1709299834791,-500.0,0.00020547,2]
[315949135,1709299834800,-501.23294619,0.00020547,2]
[315949136,1709299834809,-500.0,0.00020547,2]
[315949137,1709299834818,-500.0,0.00020547,2]
[315949138,1709299834827,-639.13850757,0.00020547,2]
[315949139,1709299834837,-500.0,0.00020547,2]
[315949140,1709299834846,-500.0,0.00020547,2]
[315949141,1709299834855,-500.0,0.00020547,2]
[315949142,1709299834864,-500.0,0.00020547,2]
[315949143,1709299834873,-500.0,0.00020547,2]
[315949144,1709299834882,-501.95237073,0.00020547,2]
[315949145,1709299834892,-500.0,0.00020547,2]
[315949146,1709299834901,-500.0,0.00020547,2]
[315949147,1709299834911,-500.87865443,0.00020547,2]
[315949148,1709299834919,-500.86368941,0.00020547,2]
[315949149,1709299834928,-500.0,0.00020547,2]
[315949150,1709299834937,-500.0,0.00020547,2]
[315949151,1709299834946,-500.0,0.00020547,2]
[315949152,1709299834955,-501.28836524,0.00020547,2]
[315949153,1709299834963,-214.18205637,0.00020547,2]
[315949154,1709299834973,-501.71518943,0.00020547,2]
[315949155,1709299834982,-629.05326636,0.00020547,2]
[315949156,1709299834990,-501.82289924,0.00020547,2]
[315949157,1709299834999,-500.0,0.00020547,2]
[315949158,1709299835008,-500.0,0.00020547,2]
[315949159,1709299835018,-500.0,0.00020547,2]
[315949160,1709299835027,-608.48,0.00020547,2]
[315949161,1709299835037,-500.0,0.00020547,2]
[315949162,1709299835048,-500.0,0.00020547,2]
[315949163,1709299835058,-501.35296597,0.00020547,2]
[315949164,1709299835067,-187.88219074,0.00020547,2]
[315949165,1709299835076,-500.0,0.00020547,2]
[315949166,1709299835086,-500.0,0.00020547,2]
[315949167,1709299835096,-500.0,0.00020547,2]
[315949168,1709299835105,-500.0,0.00020547,2]
[315949169,1709299835114,-500.0,0.00020547,2]
[315949170,1709299835124,-500.0,0.00020547,2]
[315949171,1709299835133,-501.95700991,0.00020547,2]
[315949172,1709299835144,-616.07707314,0.00020547,2]
[315949173,1709299835154,-500.0,0.00020547,2]
[315949174,1709299835165,-500.0,0.00020547,2]
[315949175,1709299835175,-500.0,0.00020547,2]
[315949176,1709299835184,-500.47334013,0.00020547,2]
[315949177,1709299835194,-500.0,0.00020547,2]
[315949178,1709299835204,-500.0,0.00020547,2]
[315949179,1709299835214,-498.96728137,0.00020547,2]
[315949180,1709299835223,-510.35524972,0.00020547,2]
[315949181,1709299835233,-500.0,0.00020547,2]
[315949182,1709299835242,-501.66583531,0.00020547,2]
[315949183,1709299835252,-584.56806029,0.00020547,2]
[315949184,1709299835261,-500.0,0.00020547,2]
[315949185,1709299835271,-205.24312968,0.00020547,2]
[315949186,1709299835280,-528.18919311,0.00020547,2]
[315949187,1709299835290,-500.93155288,0.00020547,2]
[315949188,1709299835299,-501.26937678,0.00020547,2]
[315949189,1709299835309,-500.0,0.00020547,2]
[315949190,1709299835318,-500.0,0.00020547,2]
[315949191,1709299835328,-500.0,0.00020547,2]
[315949192,1709299835337,-646.60151528,0.00020547,2]
[315949193,1709299835347,-349.58705847,0.00020547,2]
[315949194,1709299835356,-500.39954071,0.00020547,2]
[315949195,1709299835367,-500.0,0.00020547,2]
[315949196,1709299835376,-500.0,0.00020547,2]
[315949197,1709299835387,-500.0,0.00020547,2]
[315949198,1709299835396,-500.0,0.00020547,2]
[315949199,1709299835405,-500.0,0.00020547,2]
[315949200,1709299835415,-500.80094509,0.00020547,2]
[315949201,1709299835424,-501.49049316,0.00020547,2]
[315949202,1709299835434,-500.0,0.00020547,2]
[315949203,1709299835443,-500.0,0.00020547,2]
[315949204,1709299835453,-501.62372808,0.00020547,2]
[315949205,1709299835462,-166.90503507,0.00020547,2]
[315949206,1709299835472,-500.84289585,0.00020547,2]
[315949207,1709299835482,-431.87225805,0.00020547,2]
[315949208,1709299835492,-501.36203959,0.00020547,2]
[315949209,1709299835502,-500.61781197,0.00020547,2]
[315949210,1709299835511,-501.51822053,0.00020547,2]
[315949211,1709299835521,-509.44065992,0.00020547,2]
[315949212,1709299835530,-501.43638075,0.00020547,2]
[315949213,1709299835539,-500.63624964,0.00020547,2]
[315949214,1709299835549,-501.45287398,0.00020547,2]
[315949215,1709299835560,-500.0,0.00020547,2]
[315949216,1709299835570,-500.0,0.00020547,2]
[315949217,1709299835580,-500.0,0.00020547,2]
[315949218,1709299835590,-501.27835696,0.00020547,2]
[315949219,1709299835601,-500.61188878,0.00020547,2]
[315949220,1709299835610,-500.0,0.00020547,2]
[315949221,1709299835620,-500.0,0.00020547,2]
[315949222,1709299835629,-500.0,0.00020547,2]
[315949223,1709299835641,-500.0,0.00020547,2]
[315949224,1709299835652,-500.74753847,0.00020547,2]
[315949225,1709299835662,-500.0,0.00020547,2]
[315949226,1709299835672,-500.0,0.00020547,2]
[315949227,1709299835682,-500.0,0.00020547,2]
[315949228,1709299835691,-501.21309478,0.00020547,2]
[315949229,1709299835700,-500.0,0.00020547,2]
[315949230,1709299835710,-405.93239985,0.00020547,2]
[315949231,1709299835719,-500.0,0.00020547,2]
[315949232,1709299835728,-500.0,0.00020547,2]
[315949233,1709299835738,-500.0,0.00020547,2]
[315949234,1709299835748,-500.0,0.00020547,2]
[315949235,1709299835758,-500.0,0.00020547,2]
[315949236,1709299835768,-500.0,0.00020547,2]
[315949237,1709299835777,-500.42839791,0.00020547,2]
[315949238,1709299835787,-500.96270712,0.00020547,2]
[315949239,1709299835797,-500.0,0.00020547,2]
[315949240,1709299835807,-500.0,0.00020547,2]
[315949241,1709299835817,-500.0,0.00020547,2]
[315949242,1709299835827,-500.0,0.00020547,2]
[315949243,1709299835836,-500.0,0.00020547,2]
[315949244,1709299835846,-500.64234869,0.00020547,2]
[315949245,1709299835856,-500.0,0.00020547,2]
[315949246,1709299835865,-500.72011047,0.00020547,2]
[315949247,1709299835875,-500.0,0.00020547,2]
[315949248,1709299835884,-500.0,0.00020547,2]
[315949249,1709299835894,-281.29,0.00020547,2]
[315949250,1709299835904,-501.68481277,0.00020547,2]
[315949251,1709299835913,-501.20083192,0.00020547,2]
[315949252,1709299835922,-500.56435083,0.00020547,2]
[315949253,1709299835932,-500.0,0.00020547,2]
[315949254,1709299835941,-500.0,0.00020547,2]
[315949255,1709299835950,-500.0,0.00020547,2]
[315949256,1709299835960,-500.0,0.00020547,2]
[315949257,1709299835969,-501.74236139,0.00020547,2]
[315949258,1709299835979,-500.5466071,0.00020547,2]
[315949259,1709299835988,-503.30347521,0.00020547,2]
[315949260,1709299835997,-500.0,0.00020547,2]
[315949261,1709299836006,-500.0,0.00020547,2]
[315949262,1709299836015,-256.16410581,0.00020547,2]
[315949263,1709299836025,-501.57017366,0.00020547,2]
[315949264,1709299836034,-500.0,0.00020547,2]
[315949265,1709299836043,-500.0,0.00020547,2]
[315949266,1709299836052,-504.02330497,0.00020547,2]
[315949267,1709299836062,-501.33242492,0.00020547,2]
[315949268,1709299836072,-501.33966473,0.00020547,2]
[315949269,1709299836081,-500.67759965,0.00020547,2]
[315949270,1709299836091,-482.04806063,0.00020547,2]
[315949271,1709299836101,-501.6938128,0.00020547,2]
[315949272,1709299836110,-489.45531375,0.00020547,2]
[315949273,1709299836120,-501.06561376,0.00020547,2]
[315949274,1709299836129,-151.0,0.00020547,2]
[315949275,1709299836148,-3533.11,0.00020547,2]
[315949276,1709299836159,-151.0,0.00020547,2]
[315949277,1709299836169,-3533.11,0.00020547,2]
[315949278,1709299836178,-3533.11,0.00020547,2]
[315949279,1709299836188,-151.0,0.00020547,2]
[315949280,1709299836198,-500.0,0.00020547,2]
[315949281,1709299836207,-3533.11,0.00020547,2]
[315949282,1709299836217,-584.94301779,0.00020547,2]
[315949283,1709299836227,-151.0,0.00020547,2]
[315949284,1709299836237,-500.0,0.00020547,2]
[315949285,1709299836247,-151.0,0.00020547,2]
[315949286,1709299836257,-151.0,0.00020547,2]
[315949287,1709299836267,-151.0,0.00020547,2]
[315949288,1709299836278,-151.0,0.00020547,2]
[315949289,1709299836287,-151.0,0.00020547,2]
[315949290,1709299836297,-151.0,0.00020547,2]
[315949291,1709299836307,-151.0,0.00020547,2]
[315949292,1709299836317,-270.743212,0.00020547,2]
[315949293,1709299836327,-500.0,0.00020547,2]
[315949294,1709299836338,-500.0,0.00020547,2]
[315949295,1709299836351,-500.0,0.00020547,2]
[315949296,1709299836361,-500.0,0.00020547,2]
[315949297,1709299836371,-423.49,0.00020547,2]
[315949298,1709299836381,-500.0,0.00020547,2]
[315949299,1709299836392,-501.91747292,0.00020547,2]
[315949300,1709299836401,-500.0,0.00020547,2]
[315949301,1709299836410,-500.0,0.00020547,2]
[315949302,1709299836420,-500.0,0.00020547,2]
[315949303,1709299836429,-500.0,0.00020547,2]
[315949304,1709299836439,-500.0,0.00020547,2]
[315949305,1709299836448,-500.0,0.00020547,2]
[315949306,1709299836571,-503.02160777,0.00020547,2]
[315949307,1709299836581,-501.08315617,0.00020547,2]
[315949308,1709299836591,-500.9739936,0.00020547,2]
[315949309,1709299836601,-500.0,0.00020547,2]
[315949310,1709299836610,-500.93971326,0.00020547,2]
[315949311,1709299836620,-500.0,0.00020547,2]
[315949312,1709299836629,-500.9669518,0.00020547,2]
[315949313,1709299836639,-500.0,0.00020547,2]
[315949314,1709299836649,-500.0,0.00020547,2]
[315949315,1709299836658,-712.43,0.00020547,2]
[315949316,1709299836668,-712.43,0.00020547,2]
[315949317,1709299836677,-712.43,0.00020547,2]
[315949318,1709299836686,-712.43,0.00020547,2]
[315949319,1709299836696,-712.43,0.00020547,2]
[315949320,1709299836705,-712.43,0.00020547,2]
[315949321,1709299836715,-501.74279816,0.00020547,2]
[315949322,1709299836724,-712.43,0.00020547,2]
[315949323,1709299836733,-712.43,0.00020547,2]
[315949324,1709299836743,-712.43,0.00020547,2]
[315949325,1709299836752,-500.0,0.00020547,2]
[315949326,1709299836761,-712.43,0.00020547,2]
[315949327,1709299836771,-500.0,0.00020547,2]
[315949328,1709299836780,-502.04607468,0.00020547,2]
[315949329,1709299836790,-500.0,0.00020547,2]
[315949330,1709299836799,-500.0,0.00020547,2]
[315949331,1709299836809,-500.0,0.00020547,2]
[315949332,1709299836819,-500.0,0.00020547,2]
[315949333,1709299836829,-500.0,0.00020547,2]
[315949334,1709299836839,-500.0,0.00020547,2]
[315949335,1709299836848,-500.0,0.00020547,2]
[315949336,1709299836857,-500.0,0.00020547,2]
[315949337,1709299836868,-500.0,0.00020547,2]
[315949338,1709299836877,-219.59732707,0.00020547,2]
[315949339,1709299836888,-716.85,0.00020547,2]
[315949340,1709299836897,-716.85,0.00020547,2]
[315949341,1709299836907,-500.0,0.00020547,2]
[315949342,1709299836916,-500.0,0.00020547,2]
[315949343,1709299836926,-716.85,0.00020547,2]
[315949344,1709299836937,-716.85,0.00020547,2]
[315949345,1709299836946,-500.0,0.00020547,2]
[315949346,1709299836955,-501.16619384,0.00020547,2]
[315949347,1709299836964,-500.0,0.00020547,2]
[315949348,1709299836974,-500.0,0.00020547,2]
[315949349,1709299836983,-179.84917799,0.00020547,2]
[315949350,1709299836992,-500.0,0.00020547,2]
[315949351,1709299837001,-500.0,0.00020547,2]
[315949352,1709299837011,-500.0,0.00020547,2]
[315949353,1709299837020,-500.0,0.00020547,2]
[315949354,1709299837030,-500.0,0.00020547,2]
[315949355,1709299837040,-315.21251671,0.00020547,2]
[315949356,1709299837050,-500.0,0.00020547,2]
[315949357,1709299837059,-598.22,0.00020547,2]
[315949358,1709299837069,-598.22,0.00020547,2]
[315949359,1709299837079,-500.0,0.00020547,2]
[315949360,1709299837089,-500.0,0.00020547,2]
[315949361,1709299837098,-500.0,0.00020547,2]
[315949362,1709299837108,-500.0,0.00020547,2]
[315949363,1709299837117,-433.69005712,0.00020547,2]
[315949364,1709299837127,-513.19830768,0.00020547,2]
[315949365,1709299837136,-500.0,0.00020547,2]
[315949366,1709299837147,-500.0,0.00020547,2]
[315949367,1709299837157,-500.0,0.00020547,2]
[315949368,1709299837168,-500.0,0.00020547,2]
[315949369,1709299837178,-500.0,0.00020547,2]
[315949370,1709299837187,-500.0,0.00020547,2]
[315949371,1709299837197,-500.0,0.00020547,2]
[315949372,1709299837207,-500.0,0.00020547,2]
[315949373,1709299837217,-500.0,0.00020547,2]
[315949374,1709299837226,-500.0,0.00020547,2]
[315949375,1709299837235,-500.0,0.00020547,2]
[315949376,1709299837245,-643.02536685,0.00020547,2]
[315949378,1709299837255,-500.0,0.00020547,2]
[315949379,1709299837266,-500.0,0.00020547,2]
[315949380,1709299837275,-500.0,0.00020547,2]
[315949381,1709299837285,-500.0,0.00020547,2]
[315949382,1709299837295,-500.0,0.00020547,2]
[315949383,1709299837305,-500.0,0.00020547,2]
[315949384,1709299837315,-500.0,0.00020547,2]
[315949385,1709299837325,-500.0,0.00020547,2]
[315949386,1709299837335,-501.5764485,0.00020547,2]
[315949387,1709299837344,-317.86,0.00020547,2]
[315949388,1709299837354,-500.0,0.00020547,2]
[315949389,1709299837364,-500.0,0.00020547,2]
[315949390,1709299837374,-501.63733233,0.00020547,2]
[315949391,1709299837384,-500.0,0.00020547,2]
[315949392,1709299837397,-500.0,0.00020547,2]
[315949393,1709299837407,-500.0,0.00020547,2]
[315949394,1709299837417,-500.0,0.00020547,2]
[315949395,1709299837428,-500.0,0.00020547,2]
[315949396,1709299837437,-500.0,0.00020547,2]
[315949397,1709299837447,-500.0,0.00020547,2]
[315949398,1709299837457,-500.0,0.00020547,2]
[315949399,1709299837467,-500.0,0.00020547,2]
[315949400,1709299837477,-500.0,0.00020547,2]
[315949401,1709299837486,-500.0,0.00020547,2]
[315949402,1709299837495,-500.0,0.00020547,2]
[315949403,1709299837506,-500.0,0.00020547,2]
[315949404,1709299837515,-500.0,0.00020547,2]
[315949405,1709299837525,-500.0,0.00020547,2]
[315949406,1709299837534,-500.0,0.00020547,2]
[315949407,1709299837544,-500.0,0.00020547,2]
[315949408,1709299837555,-500.0,0.00020547,2]
[315949409,1709299837566,-500.0,0.00020547,2]
[315949410,1709299837578,-500.0,0.00020547,2]
[315949411,1709299837588,-500.0,0.00020547,2]
[315949412,1709299837599,-500.0,0.00020547,2]
[315949413,1709299837608,-500.0,0.00020547,2]
[315949414,1709299837618,-488.46,0.00020547,2]
[315949415,1709299837627,-500.0,0.00020547,2]
[315949416,1709299837637,-500.0,0.00020547,2]
[315949417,1709299837649,-500.0,0.00020547,2]
[315949418,1709299837658,-421.53,0.00020547,2]
[315949419,1709299837668,-500.0,0.00020547,2]
[315949420,1709299837677,-500.0,0.00020547,2]
[315949421,1709299837686,-500.0,0.00020547,2]
[315949422,1709299837696,-500.0,0.00020547,2]
[315949423,1709299837705,-500.0,0.00020547,2]
[315949424,1709299837714,-500.0,0.00020547,2]
[315949425,1709299837723,-500.0,0.00020547,2]
[315949426,1709299837733,-500.0,0.00020547,2]
[315949427,1709299837742,-500.0,0.00020547,2]
[315949428,1709299837751,-500.0,0.00020547,2]
[315949429,1709299837760,-500.0,0.00020547,2]
[315949430,1709299837769,-500.0,0.00020547,2]
[315949431,1709299837778,-500.0,0.00020547,2]
[315949432,1709299837787,-500.0,0.00020547,2]
[315949433,1709299837796,-500.0,0.00020547,2]
[315949434,1709299837805,-502.08881434,0.00020547,2]
[315949435,1709299837815,-501.74495737,0.00020547,2]
[315949436,1709299837825,-500.0,0.00020547,2]
[315949437,1709299837834,-500.0,0.00020547,2]
[315949438,1709299837844,-500.0,0.00020547,2]
[315949439,1709299837853,-500.0,0.00020547,2]
[315949440,1709299837862,-500.0,0.00020547,2]
[315949441,1709299837872,-244.5,0.00020547,2]
[315949442,1709299837881,-500.0,0.00020547,2]
[315949443,1709299837892,-648.15859824,0.00020547,2]
[315949444,1709299837901,-501.34212596,0.00020547,2]
[315949445,1709299837910,-171.80031986,0.00020547,2]
[315949446,1709299837920,-500.0,0.00020547,2]
[315949447,1709299837930,-500.0,0.00020547,2]
[315949448,1709299837939,-500.0,0.00020547,2]
[315949449,1709299837948,-500.85537898,0.00020547,2]
[315949450,1709299837958,-501.12951574,0.00020547,2]
[315949451,1709299837967,-500.0,0.00020547,2]
[315949452,1709299837977,-419.70521962,0.00020547,2]
[315949453,1709299837986,-500.0,0.00020547,2]
[315949454,1709299837995,-500.0,0.00020547,2]
[315949455,1709299838005,-219.39,0.00020547,2]
[315949456,1709299838014,-500.0,0.00020547,2]
[315949457,1709299838024,-500.0,0.00020547,2]
[315949458,1709299838033,-500.0,0.00020547,2]
[315949459,1709299838043,-500.0,0.00020547,2]
[315949460,1709299838052,-500.0,0.00020547,2]
[315949461,1709299838063,-500.0,0.00020547,2]
[315949462,1709299838074,-644.564,0.00020547,2]
[315949463,1709299838083,-500.0,0.00020547,2]
[315949464,1709299838092,-582.19138655,0.00020547,2]
[315949465,1709299838102,-500.0,0.00020547,2]
[315949466,1709299838111,-500.0,0.00020547,2]
[315949467,1709299838120,-500.0,0.00020547,2]
[315949468,1709299838130,-500.0,0.00020547,2]
[315949469,1709299838139,-500.0,0.00020547,2]
[315949470,1709299838148,-500.0,0.00020547,2]
[315949471,1709299838158,-500.0,0.00020547,2]
[315949472,1709299838167,-500.0,0.00020547,2]
[315949473,1709299838176,-500.0,0.00020547,2]
[315949474,1709299838186,-500.0,0.00020547,2]
[315949475,1709299838195,-500.68483796,0.00020547,2]
[315949476,1709299838205,-500.0,0.00020547,2]
[315949477,1709299838215,-500.0,0.00020547,2]
[315949478,1709299838224,-500.0,0.00020547,2]
[315949479,1709299838234,-500.0,0.00020547,2]
[315949480,1709299838243,-500.0,0.00020547,2]
[315949481,1709299838253,-500.0,0.00020547,2]
[315949482,1709299838262,-317.86131721,0.00020547,2]
[315949483,1709299838273,-500.0,0.00020547,2]
[315949484,1709299838282,-500.0,0.00020547,2]
[315949485,1709299838292,-500.0,0.00020547,2]
[315949486,1709299838301,-500.0,0.00020547,2]
[315949487,1709299838310,-625.41,0.00020547,2]
[315949488,1709299838319,-500.57542758,0.00020547,2]
[315949489,1709299838328,-475.49735978,0.00020547,2]
[315949490,1709299838338,-500.0,0.00020547,2]
[315949491,1709299838349,-203.42282125,0.00020547,2]
[315949492,1709299838359,-500.0,0.00020547,2]
[315949493,1709299838369,-500.0,0.00020547,2]
[315949494,1709299838378,-500.0,0.00020547,2]
[315949495,1709299838388,-500.0,0.00020547,2]
[315949496,1709299838397,-500.0,0.00020547,2]
[315949497,1709299838407,-500.0,0.00020547,2]
[315949498,1709299838416,-639.50935558,0.00020547,2]
[315949499,1709299838425,-480.76324187,0.00020547,2]
[315949500,1709299838435,-500.0,0.00020547,2]
[315949501,1709299838445,-500.0,0.00020547,2]
[315949502,1709299838454,-500.0,0.00020547,2]
[315949503,1709299838463,-500.0,0.00020547,2]
[315949504,1709299838474,-500.0,0.00020547,2]
[315949505,1709299838483,-500.87948269,0.00020547,2]
[315949506,1709299838493,-500.0,0.00020547,2]
[315949507,1709299838504,-500.0,0.00020547,2]
[315949508,1709299838513,-500.0,0.00020547,2]
[315949509,1709299838522,-500.0,0.00020547,2]
[315949510,1709299838531,-500.0,0.00020547,2]
[315949511,1709299838540,-500.0,0.00020547,2]
[315949512,1709299838552,-2031.21,0.00020547,2]
[315949513,1709299838562,-500.0,0.00020547,2]
[315949514,1709299838572,-2031.21,0.00020547,2]
[315949515,1709299838581,-2031.21,0.00020547,2]
[315949516,1709299838591,-2031.21,0.00020547,2]
[315949517,1709299838674,-2031.21,0.00020547,2]
[315949518,1709299838683,-2031.21,0.00020547,2]
[315949519,1709299838692,-2031.21,0.00020547,2]
[315949520,1709299838702,-2031.21,0.00020547,2]
[315949521,1709299838711,-2031.21,0.00020547,2]
[315949522,1709299838721,-2031.21,0.00020547,2]
[315949523,1709299838730,-500.0,0.00020547,2]
[315949524,1709299838739,-500.0,0.00020547,2]
[315949525,1709299838749,-500.0,0.00020547,2]
[315949526,1709299838758,-437.78836776,0.00020547,2]
[315949527,1709299838767,-500.0,0.00020547,2]
[315949528,1709299838776,-181.41336929,0.00020547,2]
[315949529,1709299838786,-500.0,0.00020547,2]
[315949530,1709299838795,-693.68,0.00020547,2]
[315949531,1709299838804,-693.68,0.00020547,2]
[315949532,1709299838814,-693.68,0.00020547,2]
[315949533,1709299838824,-693.68,0.00020547,2]
[315949534,1709299838833,-693.68,0.00020547,2]
[315949535,1709299838842,-693.68,0.00020547,2]
[315949536,1709299838851,-500.0,0.00020547,2]
[315949537,1709299838860,-693.68,0.00020547,2]
[315949538,1709299838870,-300.35239245,0.00020547,2]
[315949539,1709299838879,-500.0,0.00020547,2]
[315949540,1709299838888,-693.68,0.00020547,2]
[315949541,1709299838899,-693.68,0.00020547,2]
[315949542,1709299838909,-693.68,0.00020547,2]
[315949543,1709299838918,-500.0,0.00020547,2]
[315949544,1709299838928,-501.38620504,0.00020547,2]
[315949545,1709299838937,-500.0,0.00020547,2]
[315949546,1709299838947,-502.36151926,0.00020547,2]
[315949547,1709299838957,-500.0,0.00020547,2]
[315949548,1709299838966,-504.30564958,0.00020547,2]
[315949549,1709299838976,-500.0,0.00020547,2]
[315949550,1709299838985,-501.61915474,0.00020547,2]
[315949551,1709299838995,-243.5528804,0.00020547,2]
[315949552,1709299839005,-500.0,0.00020547,2]
[315949553,1709299839016,-500.0,0.00020547,2]
[315949554,1709299839025,-500.0,0.00020547,2]
[315949555,1709299839034,-500.0,0.00020547,2]
[315949556,1709299839043,-500.0,0.00020547,2]
[315949557,1709299839052,-500.0,0.00020547,2]
[315949558,1709299839062,-500.0,0.00020547,2]
[315949559,1709299839072,-500.0,0.00020547,2]
[315949560,1709299839081,-500.0,0.00020547,2]
[315949561,1709299839090,-500.0,0.00020547,2]
[315949562,1709299839100,-500.0,0.00020547,2]
[315949563,1709299839109,-321.79,0.00020547,2]
[315949564,1709299839119,-500.58709093,0.00020547,2]
[315949565,1709299839128,-501.24274127,0.00020547,2]
[315949566,1709299839137,-500.0,0.00020547,2]
[315949567,1709299839149,-500.0,0.00020547,2]
[315949569,1709299839159,-500.0,0.00020547,2]
[315949570,1709299839168,-752.69439856,0.00020548,2]
[315949571,1709299839178,-1000.0,0.00020594,2]
[315949572,1709299839187,-752.69439856,0.00020598,2]
[315949573,1709299839196,-413.11051097,0.00020623,2]
[315949574,1709299839205,-752.69439856,0.00020648,2]
[315949575,1709299839214,-1000.0,0.00020693,2]
[315949576,1709299839224,-649.76755293,0.00020694,2]
[315949577,1709299839233,-752.69439856,0.00020699,2]
[315949578,1709299839242,-413.11051097,0.00020711,2]
[315949579,1709299839252,-752.69439856,0.00020749,2]
[315949580,1709299839261,-1000.0,0.00020756,2]
[315949581,1709299839271,-712.43,0.00020768,2]
[315949582,1709299839281,-500.0,0.00020768,2]
[315949583,1709299839290,-500.0,0.00020768,2]
[315949584,1709299839300,-500.0,0.00020768,2]
[315949585,1709299839309,-2031.21,0.00020768,2]
[315949586,1709299839318,-693.68,0.00020768,2]
[315949587,1709299839327,-1000.0,0.00020787,2]
[315949588,1709299839338,-413.11051097,0.00020799,2]
[315949589,1709299839347,-752.69439856,0.00020799,2]